[Event "MČR v bleskovém šachu družstev 2019"]
[Site "Teplice, Czech Republic"]
[Date "2019.09.14"]
[Round "10.13"]
[White "Rubes, Jan"]
[Black "Vojta, Tomas"]
[Result "1-0"]
[TimeControl "3 mim. + 2 s"]
[WhiteTitle "FM"]
[BlackTitle "FM"]
[WhiteFideId "338176"]
[BlackFideId "308781"]
[WhiteElo "2316"]
[BlackElo "2353"]

1. Nf3 {[%clk 00:03:03]} Nc6 {[%clk 00:03:03]} {[%emt 00:00:02]} 2. c4 {[%clk
00:03:01]} {[%emt 00:00:04]} e5 {[%clk 00:03:02]} {[%emt 00:00:03]} 3. Nc3
{[%clk 00:03:00]} {[%emt 00:00:02]} Nf6 {[%clk 00:03:03]} {[%emt 00:00:02]} 4.
e4 {[%clk 00:03:01]} Bc5 {[%clk 00:02:57]} {[%emt 00:00:09]} 5. Nxe5 {[%clk
00:02:58]} {[%emt 00:00:04]} Bxf2+ {[%clk 00:02:56]} {[%emt 00:00:03]} 6. Kxf2
{[%clk 00:02:59]} Nxe5 {[%clk 00:02:57]} 7. d4 {[%clk 00:03:00]} {[%emt
00:00:01]} Nc6 {[%clk 00:02:41]} {[%emt 00:00:18]} 8. e5 {[%clk 00:02:57]}
{[%emt 00:00:04]} Ng8 {[%clk 00:02:34]} {[%emt 00:00:09]} 9. Qg4 {[%clk
00:02:58]} {[%emt 00:00:02]} Kf8 {[%clk 00:02:29]} {[%emt 00:00:07]} 10. Qe4
{[%clk 00:02:26]} {[%emt 00:00:33]} d6 {[%clk 00:02:20]} {[%emt 00:00:11]} 11.
Be3 {[%clk 00:02:21]} {[%emt 00:00:07]} f5 {[%clk 00:01:59]} {[%emt 00:00:24]}
12. Qf4 {[%clk 00:02:00]} {[%emt 00:00:23]} dxe5 {[%clk 00:01:49]} {[%emt
00:00:13]} 13. dxe5 {[%clk 00:02:01]} {[%emt 00:00:02]} Be6 {[%clk 00:01:39]}
{[%emt 00:00:11]} 14. Rd1 {[%clk 00:01:52]} {[%emt 00:00:10]} Qe8 {[%clk
00:01:33]} {[%emt 00:00:08]} 15. Be2 {[%clk 00:01:48]} {[%emt 00:00:06]} Nge7
{[%clk 00:01:28]} {[%emt 00:00:07]} 16. Rhf1 {[%clk 00:01:34]} {[%emt
00:00:16]} Ng6 {[%clk 00:01:25]} {[%emt 00:00:05]} 17. Bc5+ {[%clk 00:01:35]}
Kg8 {[%clk 00:01:20]} {[%emt 00:00:08]} 18. Qd2 {[%clk 00:01:24]} {[%emt
00:00:14]} Ncxe5 {[%clk 00:01:19]} {[%emt 00:00:03]} 19. Kg1 {[%clk 00:01:23]}
{[%emt 00:00:02]} h6 {[%clk 00:01:19]} {[%emt 00:00:02]} 20. Bh5 {[%clk
00:01:22]} {[%emt 00:00:03]} Qc6 {[%clk 00:01:15]} {[%emt 00:00:06]} 21. Bd4
{[%clk 00:01:20]} {[%emt 00:00:04]} Kh7 {[%clk 00:01:09]} {[%emt 00:00:08]} 22.
Qe3 {[%clk 00:01:15]} {[%emt 00:00:07]} Bxc4 {[%clk 00:01:01]} {[%emt
00:00:11]} 23. Rxf5 {[%clk 00:01:07]} {[%emt 00:00:10]} Nd3 {[%clk 00:00:23]}
{[%emt 00:00:40]} 24. Rxd3 {[%clk 00:01:02]} {[%emt 00:00:07]} Bxd3 {[%clk
00:00:23]} {[%emt 00:00:02]} 25. Qxd3 {[%clk 00:01:03]} Rad8 {[%clk 00:00:11]}
{[%emt 00:00:15]} 26. Rf3 {[%clk 00:00:23]} {[%emt 00:00:42]} Rhf8 {[%clk
00:00:08]} {[%emt 00:00:05]} 27. Bxg6+ {[%clk 00:00:14]} {[%emt 00:00:11]} Qxg6
{[%clk 00:00:09]} {[%emt 00:00:02]} 28. Qxg6+ Kxg6 {[%clk 00:00:10]} 29. Rg3+
{[%clk 00:00:16]} {[%emt 00:00:01]} Kf5 {[%clk 00:00:08]} {[%emt 00:00:04]} 30.
Bxg7 {[%clk 00:00:14]} {[%emt 00:00:04]} Rfe8 {[%clk 00:00:08]} {[%emt
00:00:02]} 31. h3 {[%clk 00:00:14]} {[%emt 00:00:02]} Rd2 {[%clk 00:00:07]}
{[%emt 00:00:03]} 32. Bxh6 {[%clk 00:00:08]} {[%emt 00:00:08]} Rxb2 {[%clk
00:00:08]} 33. Bg7 {[%clk 00:00:08]} {[%emt 00:00:02]} Rc2 {[%clk 00:00:09]}
{[%emt 00:00:02]} 34. Kh2 {[%clk 00:00:08]} {[%emt 00:00:02]} c6 {[%clk
00:00:09]} {[%emt 00:00:02]} 35. Bd4 {[%clk 00:00:08]} {[%emt 00:00:02]} b6
{[%clk 00:00:10]} {[%emt 00:00:02]} 36. Rf3+ {[%clk 00:00:09]} {[%emt
00:00:01]} Kg6 {[%clk 00:00:10]} {[%emt 00:00:01]} 37. h4 {[%clk 00:00:09]}
{[%emt 00:00:01]} c5 {[%clk 00:00:11]} {[%emt 00:00:02]} 38. Bf2 {[%clk
00:00:08]} {[%emt 00:00:03]} a6 {[%clk 00:00:09]} {[%emt 00:00:04]} 39. Nd5
{[%clk 00:00:09]} {[%emt 00:00:01]} Rxa2 {[%clk 00:00:07]} {[%emt 00:00:04]} 40.
g4 {[%clk 00:00:08]} {[%emt 00:00:03]} Ree2 {[%clk 00:00:08]} 41. Nf4+ {[%clk
00:00:09]} Kh6 {[%clk 00:00:09]} {[%emt 00:00:02]} 42. Nxe2 {[%clk 00:00:10]}
Rxe2 {[%clk 00:00:10]} 43. Kg3 {[%clk 00:00:10]} {[%emt 00:00:01]} a5 {[%clk
00:00:11]} {[%emt 00:00:02]} 44. Rf6+ {[%clk 00:00:11]} Kg7 {[%clk 00:00:12]}
45. Rxb6 {[%clk 00:00:13]} Rc2 {[%clk 00:00:08]} {[%emt 00:00:06]} 46. Ra6
{[%clk 00:00:11]} {[%emt 00:00:04]} Ra2 {[%clk 00:00:08]} {[%emt 00:00:02]} 47.
Bxc5 {[%clk 00:00:12]} {[%emt 00:00:02]} a4 {[%clk 00:00:09]} 48. h5 {[%clk
00:00:13]} Rc2 {[%clk 00:00:09]} {[%emt 00:00:02]} 49. Bd4+ {[%clk 00:00:13]}
{[%emt 00:00:01]} Kh7 {[%clk 00:00:09]} {[%emt 00:00:02]} 50. Rxa4 {[%emt
00:00:01]} Rc6 {[%clk 00:00:09]} {[%emt 00:00:02]} 51. g5 {[%clk 00:00:15]} Kg8
{[%clk 00:00:09]} {[%emt 00:00:03]} 52. h6 {[%clk 00:00:15]} {[%emt 00:00:02]}
Kh7 {[%clk 00:00:10]} 53. Ra7+ {[%clk 00:00:16]} {[%emt 00:00:02]} Kg6 {[%clk
00:00:11]} {[%emt 00:00:01]} 54. Rg7+ {[%clk 00:00:17]} Kh5 {[%clk 00:00:11]}
{[%emt 00:00:02]} 55. h7 {[%clk 00:00:18]} Rc3+ {[%clk 00:00:07]} {[%emt
00:00:07]} 56. Kf2 {[%clk 00:00:19]} Rc2+ {[%clk 00:00:07]} {[%emt 00:00:02]}
57. Ke1 {[%clk 00:00:20]} {[%emt 00:00:01]} Rc1+ {[%clk 00:00:08]} {[%emt
00:00:01]} 58. Kd2 {[%clk 00:00:21]} Rc8 {[%clk 00:00:08]} {[%emt 00:00:01]} 59.
Rg8 {[%clk 00:00:22]} {[%emt 00:00:01]} 1-0

[Event "MČR v bleskovém šachu družstev 2019"]
[Site "Teplice, Czech Republic"]
[Date "2019.09.14"]
[Round "10.15"]
[White "Kral, David"]
[Black "Svanda, Ondrej"]
[Result "1-0"]
[TimeControl "3 mim. + 2 s"]
[BlackTitle "FM"]
[WhiteFideId "326097"]
[BlackFideId "359670"]
[WhiteElo "2028"]
[BlackElo "1924"]

1. e4 {[%emt 00:18:04]} c5 {[%emt 00:00:01]} 2. b4 cxb4 {[%emt 00:00:04]} 3. a3
d5 {[%emt 00:00:03]} 4. exd5 {[%emt 00:00:01]} Qxd5 {[%emt 00:00:01]} 5. Bb2 e5
{[%emt 00:00:10]} 6. Nf3 {[%emt 00:00:01]} Nc6 {[%emt 00:00:11]} 7. axb4 {[%emt
00:00:01]} Bxb4 {[%emt 00:00:06]} 8. Na3 {[%emt 00:00:01]} Nge7 {[%emt
00:00:26]} 9. Nb5 {[%emt 00:00:02]} O-O {[%emt 00:00:18]} 10. Be2 {[%emt
00:00:22]} Bd6 {[%emt 00:00:07]} 11. c4 {[%emt 00:00:05]} Qc5 {[%emt 00:00:07]}
12. Ba3 {[%emt 00:00:11]} Nb4 13. Qb3 {[%emt 00:00:11]} a5 {[%emt 00:00:02]} 14.
Nxd6 {[%emt 00:00:05]} Qxd6 {[%emt 00:00:15]} 15. Bxb4 {[%emt 00:00:02]} Qb6 16.
c5 {[%emt 00:00:28]} Qg6 {[%emt 00:00:01]} 17. Rxa5 {[%emt 00:00:19]} Be6
{[%emt 00:00:09]} 18. Qb2 {[%emt 00:00:07]} e4 {[%emt 00:00:47]} 19. Nh4 {[%emt
00:00:18]} Qg5 {[%emt 00:00:01]} 20. g3 {[%emt 00:00:04]} Rxa5 21. Bxa5 {[%emt
00:00:03]} Nc6 22. Bc3 {[%emt 00:00:07]} f6 {[%emt 00:00:19]} 23. O-O {[%emt
00:00:04]} Qxc5 {[%emt 00:00:05]} 24. Ng2 {[%emt 00:00:07]} b6 {[%emt
00:00:09]} 25. Nf4 {[%emt 00:00:03]} Bf7 26. Qb5 {[%emt 00:00:03]} Qd6 {[%emt
00:00:11]} 27. Qxb6 {[%emt 00:00:10]} Rb8 28. Qe3 {[%emt 00:00:04]} g5 {[%emt
00:00:01]} 29. Ng2 {[%emt 00:00:04]} Bg6 {[%emt 00:00:05]} 30. f3 {[%emt
00:00:05]} exf3 {[%emt 00:00:07]} 31. Qxf3 f5 {[%emt 00:00:03]} 32. Bc4+ {[%emt
00:00:06]} Kf8 {[%emt 00:00:04]} 33. Ne3 {[%emt 00:00:07]} Qc5 {[%emt
00:00:02]} 34. Qd5 {[%emt 00:00:03]} Qxd5 35. Nxd5 Rc8 {[%emt 00:00:08]} 36.
Ne3 {[%emt 00:00:01]} Ke8 {[%emt 00:00:04]} 37. Bb5 {[%emt 00:00:02]} Ke7 38.
Bxc6 {[%emt 00:00:01]} Rxc6 39. Nxf5+ Kd7 {[%emt 00:00:03]} 40. Nd4 {[%emt
00:00:03]} Ra6 {[%emt 00:00:01]} 41. Kg2 {[%emt 00:00:03]} Be4+ 42. Kf2 {[%emt
00:00:03]} Rf6+ 43. Ke1 {[%emt 00:00:04]} Ra6 {[%emt 00:00:02]} 44. Rf7+ {[%emt
00:00:04]} Ke8 {[%emt 00:00:01]} 45. Rc7 {[%emt 00:00:02]} Rb6 {[%emt
00:00:05]} 46. Kf2 {[%emt 00:00:01]} Rb1 {[%emt 00:00:02]} 47. Ke3 Bg6 {[%emt
00:00:02]} 48. Ne2 {[%emt 00:00:04]} Rh1 {[%emt 00:00:01]} 49. Kd4 {[%emt
00:00:06]} Rxh2 {[%emt 00:00:02]} 50. Nc1 {[%emt 00:00:03]} Rg2 51. Ke5 {[%emt
00:00:03]} Rxg3 {[%emt 00:00:07]} 52. Kf6 {[%emt 00:00:02]} Kd8 {[%emt
00:00:02]} 53. Ra7 {[%emt 00:00:01]} g4 {[%emt 00:00:03]} 54. Ne2 Rf3+ 55. Kg5
{[%emt 00:00:02]} Rf2 {[%emt 00:00:02]} 56. Nf4 {[%emt 00:00:02]} h6+ {[%emt
00:00:03]} 57. Kxg6 {[%emt 00:00:02]} Rxf4 58. Kxh6 {[%emt 00:00:03]} Rf3
{[%emt 00:00:07]} 59. Rg7 {[%emt 00:00:01]} g3 {[%emt 00:00:01]} 60. Kh5 {[%emt
00:00:02]} Ke8 61. Kh4 {[%emt 00:00:01]} Kf8 62. Rxg3 {[%emt 00:00:01]} Rf4+ 63.
Rg4 {[%emt 00:00:01]} Rf3 64. Kg5 Rd3 65. Rf4+ Ke7 66. Kf5 Kd6 {[%emt
00:00:01]} 67. Rd4+ 1-0

[Event "MČR v bleskovém šachu družstev 2019"]
[Site "Teplice, Czech Republic"]
[Date "2019.09.14"]
[Round "10.16"]
[White "Vavra, Michal"]
[Black "Krutsky, Martin"]
[Result "1-0"]
[TimeControl "3 mim. + 2 s"]
[WhiteFideId "306398"]
[BlackFideId "361526"]
[WhiteElo "2026"]
[BlackElo "1974"]

1. Nf3 {[%clk 00:03:01]} {[%emt 00:00:02]} Nf6 {[%clk 00:03:03]} {[%emt
00:00:02]} 2. d4 {[%clk 00:03:01]} {[%emt 00:00:02]} g6 {[%clk 00:03:03]}
{[%emt 00:00:02]} 3. g3 {[%clk 00:03:02]} {[%emt 00:00:01]} Bg7 {[%clk
00:03:03]} {[%emt 00:00:03]} 4. Bg2 {[%clk 00:03:03]} {[%emt 00:00:02]} O-O
{[%clk 00:03:02]} {[%emt 00:00:03]} 5. O-O {[%clk 00:03:03]} {[%emt 00:00:02]}
d6 {[%clk 00:03:03]} {[%emt 00:00:02]} 6. c4 {[%clk 00:03:03]} {[%emt
00:00:02]} Nc6 {[%clk 00:03:01]} {[%emt 00:00:04]} 7. Nc3 {[%clk 00:03:03]} a6
{[%clk 00:03:02]} {[%emt 00:00:02]} 8. e4 {[%clk 00:03:02]} {[%emt 00:00:03]}
Rb8 {[%clk 00:03:01]} {[%emt 00:00:03]} 9. a4 {[%clk 00:03:01]} {[%emt
00:00:03]} e5 {[%clk 00:02:55]} {[%emt 00:00:08]} 10. dxe5 {[%clk 00:02:46]}
{[%emt 00:00:17]} Nxe5 {[%clk 00:02:41]} {[%emt 00:00:16]} 11. Nxe5 {[%clk
00:02:46]} {[%emt 00:00:02]} dxe5 {[%clk 00:02:42]} {[%emt 00:00:02]} 12. Qxd8
{[%clk 00:02:45]} {[%emt 00:00:01]} Rxd8 {[%clk 00:02:42]} {[%emt 00:00:03]} 13.
Bg5 {[%clk 00:02:46]} {[%emt 00:00:01]} Rd4 {[%clk 00:01:45]} {[%emt 00:00:59]}
14. Rad1 {[%clk 00:02:29]} {[%emt 00:00:19]} c6 {[%clk 00:01:23]} {[%emt
00:00:24]} 15. Rxd4 {[%clk 00:01:57]} {[%emt 00:00:34]} exd4 {[%clk 00:01:24]}
16. Rd1 {[%clk 00:01:47]} {[%emt 00:00:10]} Nd7 {[%clk 00:00:19]} {[%emt
00:01:08]} 17. Ne2 {[%emt 00:00:15]} c5 18. b4 {[%clk 00:01:18]} {[%emt
00:00:19]} b6 {[%clk 00:00:09]} {[%emt 00:00:14]} 19. Bf4 {[%clk 00:01:14]}
{[%emt 00:00:05]} Be5 {[%clk 00:00:06]} {[%emt 00:00:04]} 20. Bh3 {[%clk
00:00:54]} {[%emt 00:00:22]} Bxf4 {[%clk 00:00:00]} {[%emt 00:00:06]} 21. Nxf4
{[%clk 00:00:54]} {[%emt 00:00:02]} Ne5 {[%clk 00:00:00]} 22. Bxc8 {[%emt
00:00:15]} 1-0

[Event "MČR v bleskovém šachu družstev 2019"]
[Site "Teplice, Czech Republic"]
[Date "2019.09.14"]
[Round "10.17"]
[White "Bach, Markus"]
[Black "Trepka, Jan"]
[Result "1-0"]
[TimeControl "3 mim. + 2 s"]
[WhiteFideId "24603376"]
[BlackFideId "322814"]
[WhiteElo "2259"]
[BlackElo "2186"]

1. d4 {[%clk 00:03:02]} {[%emt 00:00:01]} Nf6 {[%clk 00:03:03]} {[%emt
00:00:01]} 2. Nf3 {[%clk 00:03:02]} {[%emt 00:00:02]} b6 {[%clk 00:03:04]} 3.
g3 {[%clk 00:03:02]} {[%emt 00:00:03]} Bb7 {[%clk 00:03:05]} 4. Bg2 {[%clk
00:03:03]} e6 {[%clk 00:03:07]} {[%emt 00:00:03]} 5. O-O {[%clk 00:03:03]}
{[%emt 00:00:01]} Be7 {[%clk 00:03:07]} {[%emt 00:00:02]} 6. c4 {[%clk
00:03:04]} O-O {[%clk 00:03:06]} {[%emt 00:00:03]} 7. Nc3 {[%clk 00:03:06]} d5
{[%clk 00:03:06]} {[%emt 00:00:02]} 8. cxd5 {[%clk 00:03:06]} {[%emt 00:00:03]}
Nxd5 {[%clk 00:03:04]} {[%emt 00:00:03]} 9. a3 {[%clk 00:02:56]} {[%emt
00:00:12]} c5 {[%clk 00:02:58]} {[%emt 00:00:08]} 10. dxc5 {[%clk 00:02:40]}
{[%emt 00:00:18]} Nxc3 {[%clk 00:02:46]} {[%emt 00:00:15]} 11. bxc3 {[%clk
00:02:31]} {[%emt 00:00:10]} Bxc5 {[%clk 00:02:45]} {[%emt 00:00:03]} 12. Bf4
{[%clk 00:02:23]} {[%emt 00:00:09]} Qe7 {[%clk 00:02:20]} {[%emt 00:00:28]} 13.
Qc2 {[%clk 00:02:04]} {[%emt 00:00:22]} h6 {[%clk 00:02:08]} {[%emt 00:00:13]}
14. a4 {[%clk 00:01:41]} {[%emt 00:00:25]} a5 {[%clk 00:02:09]} {[%emt
00:00:02]} 15. Rad1 {[%clk 00:01:38]} {[%emt 00:00:04]} Nc6 {[%clk 00:02:06]}
{[%emt 00:00:05]} 16. Rd2 {[%clk 00:01:26]} {[%emt 00:00:14]} Rfd8 {[%clk
00:02:06]} {[%emt 00:00:01]} 17. Rfd1 {[%clk 00:01:28]} g5 {[%clk 00:01:18]}
{[%emt 00:00:51]} 18. Rxd8+ {[%clk 00:01:28]} {[%emt 00:00:02]} Rxd8 {[%clk
00:01:20]} {[%emt 00:00:01]} 19. Bc1 {[%clk 00:01:28]} {[%emt 00:00:01]} Rd6
{[%clk 00:00:59]} {[%emt 00:00:24]} 20. h4 {[%clk 00:01:18]} {[%emt 00:00:12]}
g4 {[%clk 00:00:51]} {[%emt 00:00:10]} 21. Nh2 {[%clk 00:01:19]} {[%emt
00:00:01]} h5 {[%clk 00:00:50]} {[%emt 00:00:03]} 22. Nf1 {[%clk 00:01:20]} Qd7
{[%clk 00:00:37]} {[%emt 00:00:15]} 23. Rxd6 {[%clk 00:01:14]} {[%emt
00:00:08]} Qxd6 {[%clk 00:00:39]} {[%emt 00:00:01]} 24. Bh6 {[%clk 00:01:13]}
{[%emt 00:00:02]} Qe5 {[%clk 00:00:24]} {[%emt 00:00:18]} 25. Qd2 {[%clk
00:01:01]} {[%emt 00:00:13]} Qf6 {[%clk 00:00:15]} {[%emt 00:00:12]} 26. Ne3
{[%clk 00:00:49]} {[%emt 00:00:14]} Nd8 {[%clk 00:00:13]} {[%emt 00:00:04]} 27.
Bg5 {[%clk 00:00:48]} {[%emt 00:00:02]} Bxe3 {[%clk 00:00:08]} {[%emt
00:00:07]} 28. Qxe3 {[%clk 00:00:46]} {[%emt 00:00:04]} Qf5 {[%clk 00:00:04]}
{[%emt 00:00:07]} 29. Bxd8 {[%clk 00:00:44]} {[%emt 00:00:03]} Bxg2 {[%clk
00:00:05]} {[%emt 00:00:01]} 30. Bxb6 {[%clk 00:00:30]} {[%emt 00:00:17]} Bd5
{[%clk 00:00:06]} {[%emt 00:00:01]} 31. Qg5+ {[%clk 00:00:30]} Qxg5 32. hxg5
{[%clk 00:00:31]} Bb3 {[%clk 00:00:09]} 33. Bxa5 {[%clk 00:00:32]} {[%emt
00:00:01]} Bxa4 {[%clk 00:00:10]} {[%emt 00:00:01]} 34. f4 {[%clk 00:00:27]}
{[%emt 00:00:07]} gxf3 {[%clk 00:00:09]} {[%emt 00:00:03]} 35. exf3 {[%clk
00:00:29]} Bd1 {[%clk 00:00:10]} 36. f4 {[%clk 00:00:30]} {[%emt 00:00:01]} Bf3
{[%clk 00:00:12]} 37. Kf2 {[%clk 00:00:31]} Bd5 {[%clk 00:00:13]} {[%emt
00:00:02]} 38. Ke3 {[%clk 00:00:32]} Kf8 {[%clk 00:00:14]} {[%emt 00:00:01]} 39.
Kd4 {[%clk 00:00:34]} Ke8 {[%clk 00:00:16]} 40. Kc5 Kd7 {[%emt 00:00:02]} 41.
Kb6 {[%clk 00:00:36]} Kc8 {[%clk 00:00:19]} 42. Bb4 {[%clk 00:00:37]} {[%emt
00:00:02]} Be4 {[%clk 00:00:20]} {[%emt 00:00:01]} 43. Be7 {[%clk 00:00:38]}
Bg6 {[%clk 00:00:22]} {[%emt 00:00:01]} 44. Kc5 {[%clk 00:00:39]} Kc7 {[%clk
00:00:23]} 45. c4 {[%clk 00:00:41]} {[%emt 00:00:01]} Kc8 {[%clk 00:00:24]} 46.
Kb5 {[%clk 00:00:41]} {[%emt 00:00:01]} Kc7 {[%clk 00:00:26]} 47. c5 {[%clk
00:00:43]} Be4 {[%clk 00:00:27]} 48. Bd6+ {[%clk 00:00:43]} {[%emt 00:00:02]}
Kc8 {[%clk 00:00:28]} 49. Kb6 {[%clk 00:00:44]} {[%emt 00:00:02]} Bd5 {[%clk
00:00:29]} 50. Be5 {[%clk 00:00:44]} {[%emt 00:00:02]} Be4 {[%clk 00:00:31]} 51.
c6 {[%clk 00:00:44]} {[%emt 00:00:02]} Bd5 {[%clk 00:00:32]} 52. Kc5 {[%clk
00:00:45]} Be4 {[%clk 00:00:34]} 53. Kd6 {[%clk 00:00:47]} Bf5 {[%clk
00:00:35]} {[%emt 00:00:02]} 54. Ke7 {[%clk 00:00:47]} {[%emt 00:00:01]} Bg6
{[%clk 00:00:36]} {[%emt 00:00:01]} 55. c7 {[%clk 00:00:46]} {[%emt 00:00:04]}
h4 {[%clk 00:00:27]} {[%emt 00:00:10]} 56. gxh4 {[%emt 00:00:07]} Bh5 57. Kf6
{[%clk 00:00:41]} {[%emt 00:00:01]} Kd7 {[%clk 00:00:28]} {[%emt 00:00:02]} 58.
Kg7 {[%clk 00:00:43]} Kc8 {[%clk 00:00:22]} {[%emt 00:00:09]} 59. Kh6 {[%clk
00:00:44]} {[%emt 00:00:01]} Bg6 {[%clk 00:00:22]} {[%emt 00:00:02]} 60. h5
{[%clk 00:00:44]} {[%emt 00:00:01]} Bf5 {[%clk 00:00:24]} 61. g6 {[%clk
00:00:46]} fxg6 {[%clk 00:00:25]} {[%emt 00:00:03]} 62. hxg6 {[%clk 00:00:47]}
1-0